Workbook

Sheet マハラノビス距離
A1: サンプルデータ | C1: マハラノビス距離 | E1: 2次元データのマハラノビス距離による判定 | V1: 1次元データのマハラノビス距離による判定
A2: x | B2: y | Y2: X | Z2: Y
A3: -0.5657175561 | B3: -0.831531901 | C3: =SQRT(A3*($R$9*A3+$S$9*B3)+B3*($R$10*A3+$S$10*B3)) -> 1.324831193 | D3: 共分散行列 | G3: Σ= | H3: Sxx=｛1/(n-1)｝｛Σ(Xi^2)-n*μx^2｝ | M3: Sxy=｛1/(n-1)｝｛Σ(Xi*Yi)-n*μx*μy｝ | R3: =_xlfn.VAR.S(A3:A58) -> 165.3529869 | S3: =_xlfn.COVARIANCE.S(A3:A58,B3:B58) -> 14.22356497 | V3: 平均 | Y3: =AVERAGE(A3:A58) -> -0.04347246251 | Z3: =AVERAGE(B3:B58) -> 0.009082217116
A4: 5.864146854 | B4: -0.03032239554 | C4: 1.012916219 | H4: Sxy=｛1/(n-1)｝｛Σ(Xi*Yi)-n*μx*μy｝ | M4: Syy=｛1/(n-1)｝｛Σ(Yi^2)-n*μy^2｝ | R4: =_xlfn.COVARIANCE.S(A3:A58,B3:B58) -> 14.22356497 | S4: =_xlfn.VAR.S(B3:B58) -> 1.573074444 | V4: 不偏分散 | Y4: =_xlfn.VAR.S(A3:A58) -> 165.3529869 | Z4: =_xlfn.VAR.S(B3:B58) -> 1.573074444
A5: 7.99622538 | B5: 0.3309991819 | C5: 0.8665605253 | V5: 判定対象データ | Y5: 6
A6: -3.49435969 | B6: -1.06444386 | C6: 1.320221046 | D6: 固有値 | H6: λ=［(Sxx+Syy)±√｛(Sxx+Syy)^2-4(Sxx*Syy-Sxy*Sxy)｝］/2 | Q6: λ1 | R6: =((R3+S4)+SQRT((R3+S4)^2-4*(R3*S4-S3*R4)))/2 -> 166.5790625 | V6: マハラノビス距離 | Y6: =SQRT((Y5-$Y$3)^2/$Y$4) -> 0.4699812428 | Z6: =SQRT((Y5-$Z$3)^2/$Z$4) -> 4.776598322
A7: 2.46515422 | B7: -0.5538098443 | C7: 1.309442997 | Q7: λ2 | R7: =((R3+S4)-SQRT((R3+S4)^2-4*(R3*S4-S3*R4)))/2 -> 0.3469989361
A8: 2.399192537 | B8: -0.4639862819 | C8: 1.149063357
A9: 7.226190188 | B9: 0.1962750852 | C9: 0.9128371936 | D9: 逆行列 | G9: Σ^-1= | H9: Zxx= Syy/(Sxx*Syy-Sxy*Sxy) | M9: Zxy=-Sxy/(Sxx*Syy-Sxy*Sxy) | R9: =S4/(R3*S4-S3*R4) -> 0.02721452252 | S9: =-R4/(R3*S4-S3*R4) -> -0.2460706998 | V9: 1次元データのユークリッド距離による判定
A10: -2.627591844 | B10: -1.00449649 | C10: 1.332426208 | H10: Zxy=-Sxy/(Sxx*Syy-Sxy*Sxy) | M10: Zyy= Sxx/(Sxx*Syy-Sxy*Sxy) | R10: =-S3/(R3*S4-S3*R4) -> -0.2460706998 | S10: =R3/(R3*S4-S3*R4) -> 2.860641849 | Y10: X | Z10: Y
A11: 2.105029272 | B11: -0.5485102018 | C11: 1.244787281 | V11: 平均 | Y11: =AVERAGE(A3:A58) -> -0.04347246251 | Z11: =AVERAGE(B3:B58) -> 0.009082217116
A12: 2.81361866 | B12: -0.461342172 | C12: 1.209591409 | D12: マハラノビス距離 | H12: Ri=√｛Xi*(Zxx*Xi+Zxy*Yi)+Yi*(Zxy*Xi+Zyy*Yi)｝ | V12: 判定対象データ | Y12: 6
A13: 2.397368576 | B13: -0.4500375996 | C13: 1.125505747 | V13: ユークリッド距離 | Y13: =ABS(Y12-Y11) -> 6.043472463 | Z13: =ABS(Y12-Z11) -> 5.990917783
A14: 2.471370377 | B14: -0.5671729186 | C14: 1.33276971 | D14: 判定楕円に含まれる確率 | H14: P(h) = 1 - exp(- 1/2 h^2) とすると、（判定のしきい値を3σの確率とすると） | R14: 0.997
A15: 2.434457901 | B15: -0.5086041585 | C15: 1.229077794 | D15: 楕円までのマハラノビス距離 | H15: h=√ln{-2*(1-P(h)} | R15: =SQRT(-2*LN(1-R14)) -> 3.40856069
A16: 2.434457901 | B16: -0.5086041585 | C16: 1.229077794
A17: 2.207606848 | B17: -0.5641147823 | C17: 1.286796431 | D17: 楕円の半径ベクトル | H17: r^T*Σ^-1*r = h^2
A18: 2.6556305 | B18: -0.453430291 | C18: 1.171614669
A19: 4.568355808 | B19: -0.2268055214 | C19: 1.106814739 | D19: 楕円の傾き | H19: tan2θ = 2*Sxy/(Sxx - Syy) | R19: =DEGREES(ATAN(2*S3/(R3-S4)))/2 -> 4.926734542
A20: 0.1919103368 | B20: -0.7558780406 | C20: 1.306455151 | D20: 楕円の長半径(第1主成分） | H20: a^2 = h^2 * { Sxx*(cosθ)^2 + Sxy*sin2θ + Syy*(sinθ)^2 } | R20: =SQRT(R15^2*(R3*COS(RADIANS(R19))^2+S3*SIN(RADIANS(2*R19))+S4*SIN(RADIANS(R19))^2)) -> 43.99276288
A21: -16.19371269 | B21: -1.150519357 | C21: 1.324416205 | D21: 楕円の短半径(第2主成分） | H21: b^2 = h^2 * { Sxx*(sinθ)^2 - Sxy*sin2θ + Syy*(cosθ)^2 } | R21: =SQRT(R15^2*(R3*SIN(RADIANS(R19))^2-S3*SIN(RADIANS(2*R19))+S4*COS(RADIANS(R19))^2)) -> 2.007867743
A22: -17.95506771 | B22: -1.04628553 | C22: 1.630855893
A23: -14.15068185 | B23: -1.235777704 | C23: 1.100899504 | D23: 楕円の長半径(固有値より） | H23: a = h*√(λ2) | R23: =R15*SQRT(R7) -> 2.007867743
A24: -10.34090386 | B24: -1.294593802 | C24: 1.056453843 | D24: 楕円の短半径(固有値より） | H24: b = h*√(λ1) | R24: =R15*SQRT(R6) -> 43.99276288
A25: -22.06521651 | B25: -0.6843160252 | C25: 2.675539916
A26: -16.18607674 | B26: -1.183117861 | C26: 1.307523047 | E26: 楕円作図用データ
A27: -16.20404031 | B27: -1.117805314 | C27: 1.343853918 | F27: しきい値 | H27: マハラノビス距離
A28: -11.17783604 | B28: -1.2933838 | C28: 1.034741625 | E28: θ | F28: X | G28: Y
A29: -21.22212738 | B29: -0.7710310515 | C29: 2.429936386 | E29: 0 | F29: =$R$20*COS(RADIANS(E29))*COS(RADIANS($R$19))-$R$21*SIN(RADIANS(E29))*SIN(RADIANS($R$19)) -> 43.83022422 | G29: =$R$20*COS(RADIANS(E29))*SIN(RADIANS($R$19))+$R$21*SIN(RADIANS(E29))*COS(RADIANS($R$19)) -> 3.778178292 | H29: =SQRT(F29*($R$9*F29+$S$9*G29)+G29*($R$10*F29+$S$10*G29)) -> 3.40856069
A30: -16.49463092 | B30: -1.134536204 | C30: 1.369911627 | E30: =E29+5 -> 5 | F30: 43.6484079 | G30: 3.938151831 | H30: 3.40856069
A31: -15.83832686 | B31: -1.168306795 | C31: 1.274693548 | E31: 10 | F31: 43.13440085 | G31: 4.068153656 | H31: 3.40856069
A32: -16.20255596 | B32: -1.080418616 | C32: 1.366920074 | E32: 15 | F32: 42.29211496 | G32: 4.167194376 | H32: 3.40856069
A33: -16.18510867 | B33: -1.220593301 | C33: 1.291707748 | E33: 20 | F33: 41.12796054 | G33: 4.23452023 | H33: 3.40856069
A34: -16.19371269 | B34: -1.150519357 | C34: 1.324416205 | E34: 25 | F34: 39.65079751 | G34: 4.269618829 | H34: 3.40856069
A35: -16.19371269 | B35: -1.150519357 | C35: 1.324416205 | E35: 30 | F35: 37.87186796 | G35: 4.27222305 | H35: 3.40856069
A36: -16.43393451 | B36: -1.168381062 | C36: 1.343647436 | E36: 35 | F36: 35.80471063 | G36: 4.242313074 | H36: 3.40856069
A37: -15.95674552 | B37: -1.132124808 | C37: 1.305854306 | E37: 40 | F37: 33.46505784 | G37: 4.180116534 | H37: 3.40856069
A38: -14.01019886 | B38: -1.2445124 | C38: 1.091559954 | E38: 45 | F38: 30.87071575 | G38: 4.086106783 | H38: 3.40856069
A39: -18.43381253 | B39: -1.007735844 | C39: 1.73507715 | E39: 50 | F39: 28.04142887 | G39: 3.960999292 | H39: 3.40856069
A40: 13.78961537 | B40: 1.554548337 | C40: 1.240230768 | E40: 55 | F40: 24.99872978 | G40: 3.805746205 | H40: 3.40856069
A41: 10.17736151 | B41: 0.7465426474 | C41: 0.8209418516 | E41: 60 | F41: 21.76577527 | G41: 3.621529092 | H41: 3.40856069
A42: 17.84576595 | B42: 2.647767758 | C42: 2.338307539 | E42: 65 | F42: 18.36717007 | G42: 3.409749955 | H42: 3.40856069
A43: 18.80455191 | B43: 2.941941192 | C43: 2.675084206 | E43: 70 | F43: 14.82877961 | G43: 3.172020562 | H43: 3.40856069
A44: 8.263682487 | B44: 0.3745968716 | C44: 0.8581391009 | E44: 75 | F44: 11.17753318 | G44: 2.910150177 | H44: 3.40856069
A45: 13.83781159 | B45: 1.505129588 | C45: 1.200642147 | E45: 80 | F45: 7.441218978 | G45: 2.626131793 | H45: 3.40856069
A46: 13.73597681 | B46: 1.602598332 | C46: 1.283810885 | E46: 85 | F46: 3.648272605 | G46: 2.32212696 | H46: 3.40856069
A47: 18.12240566 | B47: 2.735614073 | C47: 2.438715755 | E47: 90 | F47: -0.1724393247 | G47: 2.000449338 | H47: 3.40856069
A48: 9.079767082 | B48: 0.5264321341 | C48: 0.827054312 | E48: 95 | F48: -3.991838887 | G48: 1.663547089 | H48: 3.40856069
A49: 13.46629197 | B49: 1.475717716 | C49: 1.17677448 | E49: 100 | F49: -7.780858146 | G49: 1.313984242 | H49: 3.40856069
A50: 14.1555278 | B50: 1.645270513 | C50: 1.317163775 | E50: 105 | F50: -11.51066038 | G50: 0.9544211819 | H50: 3.40856069
A51: 13.74287102 | B51: 1.602418533 | C51: 1.283532677 | E51: 110 | F51: -15.15285953 | G51: 0.5875944001 | H51: 3.40856069
A52: 13.83618269 | B52: 1.506656118 | C52: 1.201781475 | E52: 115 | F52: -18.67973627 | G52: 0.2162956701 | H52: 3.40856069
A53: 13.78961537 | B53: 1.554548337 | C53: 1.240230768 | E53: 120 | F53: -22.06444894 | G53: -0.1566492005 | H53: 3.40856069
A54: 13.78961537 | B54: 1.554548337 | C54: 1.240230768 | E54: 125 | F54: -25.28123784 | G54: -0.5284018761 | H54: 3.40856069
A55: 13.58464342 | B55: 1.47798608 | C55: 1.178971174 | E55: 130 | F55: -28.30562124 | G55: -0.8961330944 | H55: 3.40856069
A56: 13.98751907 | B56: 1.629723397 | C56: 1.305239277 | E56: 135 | F56: -31.11458178 | G56: -1.257044199 | H56: 3.40856069
A57: 15.74446248 | B57: 2.055351117 | C57: 1.704392847 | E57: 140 | F57: -33.68674156 | G57: -1.608388438 | H57: 3.40856069 | AC57: マハラノビス距離
A58: 11.70723057 | B58: 1.071507621 | C58: 0.9169376125 | E58: 145 | F58: -36.0025249 | G58: -1.947491869 | H58: 3.40856069 | AB58: Y
E59: 150 | F59: -38.04430729 | G59: -2.271773712 | H59: 3.40856069 | AB59: =Y59*SIN(RADIANS(Y$19))+Z59*COS(RADIANS(Y$19)) -> 0 | AC59: =SQRT(AA59*(Y$9*AA59+Z$9*AB59)+AB59*(Y$10*AA59+Z$10*AB59)) -> 
E60: 155 | F60: -39.79654952 | G60: -2.578765985 | H60: 3.40856069 | AB60: =Y60*SIN(RADIANS(Y$19))+Z60*COS(RADIANS(Y$19)) -> 0 | AC60: =SQRT(AA60*(Y$9*AA60+Z$9*AB60)+AB60*(Y$10*AA60+Z$10*AB60)) -> 
A61: 判定対象データ | C61: マハラノビス距離 | E61: 160 | F61: =$R$20*COS(RADIANS(E61))*COS(RADIANS($R$19))-$R$21*SIN(RADIANS(E61))*SIN(RADIANS($R$19)) -> -41.24591599 | G61: =$R$20*COS(RADIANS(E61))*SIN(RADIANS($R$19))+$R$21*SIN(RADIANS(E61))*COS(RADIANS($R$19)) -> -2.866132292 | H61: =SQRT(F61*($R$9*F61+$S$9*G61)+G61*($R$10*F61+$S$10*G61)) -> 3.40856069 | AB61: 0
A62: x | B62: y | E62: 165 | F62: -42.38137612 | G62: -3.131685601 | H62: 3.40856069 | AB62: 0
A63: 30 | B63: 6 | C63: =SQRT(A63*($R$9*A63+$S$9*B63)+B63*($R$10*A63+$S$10*B63)) -> 6.236242852 | E63: 170 | F63: -43.1942884 | G63: -3.373404892 | H63: 3.40856069 | AB63: 0
A64: -30 | B64: -5 | C64: =SQRT(A64*($R$9*A64+$S$9*B64)+B64*($R$10*A64+$S$10*B64)) -> 4.710404076 | E64: 175 | F64: -43.67846606 | G64: -3.589450535 | H64: 3.40856069 | AB64: 0
A65: 10 | B65: 2 | C65: =SQRT(A65*($R$9*A65+$S$9*B65)+B65*($R$10*A65+$S$10*B65)) -> 2.078747617 | E65: 180 | F65: -43.83022422 | G65: -3.778178292 | H65: 3.40856069 | AB65: 0
E66: 185 | F66: -43.6484079 | G66: -3.938151831 | H66: 3.40856069 | AB66: 0
E67: 190 | F67: -43.13440085 | G67: -4.068153656 | H67: 3.40856069 | AB67: 0
E68: 195 | F68: -42.29211496 | G68: -4.167194376 | H68: 3.40856069 | AB68: 0
E69: 200 | F69: -41.12796054 | G69: -4.23452023 | H69: 3.40856069 | AB69: 0
E70: 205 | F70: -39.65079751 | G70: -4.269618829 | H70: 3.40856069 | AB70: 0
E71: 210 | F71: -37.87186796 | G71: -4.27222305 | H71: 3.40856069 | AB71: 0
E72: 215 | F72: -35.80471063 | G72: -4.242313074 | H72: 3.40856069 | AB72: 0
E73: 220 | F73: -33.46505784 | G73: -4.180116534 | H73: 3.40856069 | AB73: 0
E74: 225 | F74: -30.87071575 | G74: -4.086106783 | H74: 3.40856069 | AB74: 0
E75: 230 | F75: -28.04142887 | G75: -3.960999292 | H75: 3.40856069 | AB75: 0
E76: 235 | F76: -24.99872978 | G76: -3.805746205 | H76: 3.40856069 | AB76: 0
E77: 240 | F77: -21.76577527 | G77: -3.621529092 | H77: 3.40856069 | AB77: 0
E78: 245 | F78: -18.36717007 | G78: -3.409749955 | H78: 3.40856069 | AB78: 0
E79: 250 | F79: -14.82877961 | G79: -3.172020562 | H79: 3.40856069 | AB79: 0
E80: 255 | F80: -11.17753318 | G80: -2.910150177 | H80: 3.40856069 | AB80: 0
E81: 260 | F81: -7.441218978 | G81: -2.626131793 | H81: 3.40856069 | AB81: 0
E82: 265 | F82: -3.648272605 | G82: -2.32212696 | H82: 3.40856069 | AB82: 0
E83: 270 | F83: 0.1724393247 | G83: -2.000449338 | H83: 3.40856069 | AB83: 0
E84: 275 | F84: 3.991838887 | G84: -1.663547089 | H84: 3.40856069 | AB84: 0
E85: 280 | F85: 7.780858146 | G85: -1.313984242 | H85: 3.40856069 | AB85: 0
E86: 285 | F86: 11.51066038 | G86: -0.9544211819 | H86: 3.40856069 | AB86: 0
E87: 290 | F87: 15.15285953 | G87: -0.5875944001 | H87: 3.40856069 | AB87: 0
E88: 295 | F88: 18.67973627 | G88: -0.2162956701 | H88: 3.40856069 | AB88: 0
E89: 300 | F89: 22.06444894 | G89: 0.1566492005 | H89: 3.40856069 | AB89: 0
E90: 305 | F90: 25.28123784 | G90: 0.5284018761 | H90: 3.40856069 | AB90: 0
E91: 310 | F91: 28.30562124 | G91: 0.8961330944 | H91: 3.40856069 | AB91: 0
E92: 315 | F92: 31.11458178 | G92: 1.257044199 | H92: 3.40856069 | AB92: 0
E93: 320 | F93: =$R$20*COS(RADIANS(E93))*COS(RADIANS($R$19))-$R$21*SIN(RADIANS(E93))*SIN(RADIANS($R$19)) -> 33.68674156 | G93: =$R$20*COS(RADIANS(E93))*SIN(RADIANS($R$19))+$R$21*SIN(RADIANS(E93))*COS(RADIANS($R$19)) -> 1.608388438 | H93: =SQRT(F93*($R$9*F93+$S$9*G93)+G93*($R$10*F93+$S$10*G93)) -> 3.40856069 | AB93: 0
E94: =E93+5 -> 325 | F94: 36.0025249 | G94: 1.947491869 | H94: 3.40856069 | AB94: 0
E95: 330 | F95: 38.04430729 | G95: 2.271773712 | H95: 3.40856069 | AB95: 0
E96: 335 | F96: 39.79654952 | G96: 2.578765985 | H96: 3.40856069 | AB96: 0
E97: 340 | F97: 41.24591599 | G97: 2.866132292 | H97: 3.40856069 | AB97: 0
E98: 345 | F98: 42.38137612 | G98: 3.131685601 | H98: 3.40856069 | AB98: 0
E99: 350 | F99: 43.1942884 | G99: 3.373404892 | H99: 3.40856069 | AB99: 0
E100: 355 | F100: 43.67846606 | G100: 3.589450535 | H100: 3.40856069 | AB100: 0
E101: 360 | F101: 43.83022422 | G101: 3.778178292 | H101: 3.40856069 | AB101: 0
AB102: 0
AB103: 0
AB104: 0
AB105: 0
AB106: 0
AB107: 0
AB108: 0
AB109: 0
AB110: 0
AB111: 0
AB112: 0
AB113: 0
AB114: 0
AB115: 0
AB116: 0
AB117: 0
AB118: 0
AB119: 0
AB120: 0
AB121: 0
AB122: 0
AB123: 0
AB124: =Y124*SIN(RADIANS(Y$19))+Z124*COS(RADIANS(Y$19)) -> 0 | AC124: =SQRT(AA124*(Y$9*AA124+Z$9*AB124)+AB124*(Y$10*AA124+Z$10*AB124)) -> 
AB125: 0
AB126: 0
AB127: 0
AB128: 0
AB129: 0

Sheet 例題2
B2: 地球モデル定数
C3: 赤道半径 | E3: ae | F3: 6378142 | G3: [m]
C4: 離心率 | E4: e | F4: =(1/298.255)*(2- (1/298.255)) -> 0.006694429815 | G4: [ND]
C5: 重力定数 | E5: μ | F5: 398600900000000 | G5: [m^3/s^2]
C6: 地球自転角速度 | E6: ωex | F6: 0 | G6: [度/s]
E7: ωey | F7: 0 | G7: [度/s]
E8: ωez | F8: =wer() -> 0.004178074622 | G8: [度/s]
B9: 射点位置
C10: 測地緯度 | E10: φＬ | F10: 30.38569 | G10: [度]
C11: 経度 | E11: λＬ | F11: 130.96254 | G11: [度]
C12: 高度 | E12: h | F12: 114.126 | G12: [m]
B14: 航法座標系：射点基準地球中心赤道慣性座標系 | I14: グリニッジ基準地球中心赤道慣性座標系 | O14: 角運動量ベクトル | S14: 落下点基準軌道座標系 DIR
B15: 時間 | C15: 位置 rN | F15: 速度 vN | I15: 位置 r | L15: 速度 v | O15: =exe("h＝ｒ×ｖ",O18:Q18=vctcrp(I18:K18,L18:N18)) -> h＝ｒ×ｖ | S15: =exe("R",S17:S19=vctnrm(I24:K24)) -> R | T15: =exe("T",T17:T19=vctnrm(L24:N24)) -> T | U15: =exe("N",U17:U19=vctnrm(O24:Q24)) -> N
B16: t | C16: x | D16: y | E16: z | F16: Vx | G16: Vy | H16: Vz | I16: x | J16: y | K16: z | L16: Vx | M16: Vy | N16: Vz | O16: x | P16: y | Q16: z | S16: [ND] | T16: [ND] | U16: [ND]
B17: s | C17: [m] | D17: [m] | E17: [m] | F17: [m/s] | G17: [m/s] | H17: [m/s] | I17: [m] | J17: [m] | K17: [m] | L17: [m/s] | M17: [m/s] | N17: [m/s] | O17: [m^2/s] | P17: [m^2/s] | Q17: [m^2/s] | S17: -0.2380148941 | T17: 0.9490080459 | U17: -0.2067187437
B18: 5848.775014 | C18: 5952035.727 | D18: 1223942.349 | E18: 2768681.871 | F18: 1201.705046 | G18: 5566.303942 | H18: -5107.823889 | I18: =C18*COS(RADIANS($F$11))-D18*SIN(RADIANS($F$11)) -> -4826194.842 | J18: =C18*SIN(RADIANS($F$11))+D18*COS(RADIANS($F$11)) -> 3692236.113 | K18: =E18 -> 2768681.871 | L18: =F18*COS(RADIANS($F$11))-G18*SIN(RADIANS($F$11)) -> -4991.125897 | M18: =F18*SIN(RADIANS($F$11))+G18*COS(RADIANS($F$11)) -> -2741.623035 | N18: =H18 -> -5107.823889 | O18: -1.126860983e+10 | P18: -3.847019309e+10 | Q18: 3.166002223e+10 | S18: -0.6230142341 | T18: -0.3124562711 | U18: -0.7170943751
S19: -0.7451188994 | T19: -0.04189042195 | U19: 0.6656147672
E20: =exe("大気中落下点（DIP） β[kg/m^2] =",E24:G24=dip(I18:K18,L18:N18,H20)) -> 大気中落下点（DIP） β[kg/m^2] = | H20: 370 | I20: 落下点地心半径ベクトル | L20: 接線方向ベクトル | O20: 法線方向ベクトル
E21: 測地緯度 | F21: 経度 | G21: 落下時間 | H21: 射点／自転 補正済経度 | I21: R | L21: =exe("T＝h×R",L24:N24=vctcrp(O18:Q18,I24:K24)) -> T＝h×R | O21: =exe("N＝R×T",O24:Q24=vctcrp(I24:K24,L24:N24)) -> N＝R×T
E22: φI | F22: λI | G22: TI | H22: λI | I22: x | J22: y | K22: z | L22: x | M22: y | N22: z | O22: x | P22: y | Q22: z
E23: [度] | F23: [度] | G23: [s] | H23: (度) | I23: [m] | J23: [m] | K23: [m] | L23: [m^2/s] | M23: [m^2/s] | N23: [m^2/s] | O23: [m^2/s] | P23: [m^2/s] | Q23: [m^2/s]
E24: -48.17058855 | F24: 283.1369128 | G24: 2299.871244 | H24: =F24-$F$8*(B18+G24) -> 249.0912606 | I24: =$F$3/SQRT(1-($F$4*SIN(RADIANS($E$24)))^2)*COS(RADIANS($E$24))*COS(RADIANS($H$24)) -> -1518073.906 | J24: =$F$3/SQRT(1-($F$4*SIN(RADIANS($E$24)))^2)*COS(RADIANS($E$24))*SIN(RADIANS($H$24)) -> -3973623.816 | K24: =$F$3/SQRT(1-($F$4*SIN(RADIANS($E$24)))^2)*(1-$F$4^2)*SIN(RADIANS($E$24)) -> -4752415.021 | L24: 3.086313419e+17 | M24: -1.016153642e+17 | N24: -1.36233799e+16 | O24: -4.287841964e+23 | P24: -1.487425523e+24 | Q24: 1.380644483e+24
A27: 弾道係数 | B27: 誤差要因 | H27: 大気中落下点誤差 | J27: 大気中落下点 | L27: 落下点地心半径ベクトル | O27: 軌道座標系 | T27: 平均からの差
B28: 位置誤差 | E28: 速度誤差
B29: 高度方向 | C29: 接線方向 | D29: 垂直方向 | E29: 高度方向 | F29: 接線方向 | G29: 垂直方向 | H29: 測地緯度 | I29: 射点／自転 補正済経度 | J29: 測地緯度 | K29: 射点／自転 補正済経度 | L29: R | O29: 計算値 | T29: 大気中落下点誤差 | V29: 軌道座標系誤差
B30: δrR | C30: δrT | D30: δrN | E30: δvR | F30: δvT | G30: δvN | H30: φI | I30: λI | J30: φI | K30: λI | L30: x | M30: y | N30: z | P30: X | R30: Y | T30: φI | U30: λI | V30: X | W30: Y
B31: [m] | C31: [m] | D31: [m] | E31: [m/s] | F31: [m/s] | G31: [m/s] | H31: [度] | I31: [度] | J31: [度] | K31: [度] | L31: [m] | M31: [m] | N31: [m] | P31: [度] | R31: [度] | T31: [度] | U31: [度] | V31: [度] | W31: [度]
A32: β＝370[kg/m^2] | B32: 0 | C32: 0 | D32: 0 | E32: 0 | F32: 0 | G32: 0 | H32: 0 | I32: 0 | J32: =$E$24+H32 -> -48.17058855 | K32: =$H$24+I32 -> 249.0912606 | L32: =$F$3/SQRT(1-($F$4*SIN(RADIANS(J32)))^2)*COS(RADIANS(J32))*COS(RADIANS(K32)) -> -1518073.906 | M32: =$F$3/SQRT(1-($F$4*SIN(RADIANS(J32)))^2)*COS(RADIANS(J32))*SIN(RADIANS(K32)) -> -3973623.816 | N32: =$F$3/SQRT(1-($F$4*SIN(RADIANS(J32)))^2)*(1-$F$4^2)*SIN(RADIANS(J32)) -> -4752415.021 | O32: =exe("X=",P32=Artand(vctinp($T$17:$T$19,L32:N32),vctinp(vctnrm(vctcrp(vctcrp($T$17:$T$19,L32:N32),$T$17:$T$19)),L32:N32))) -> X= | P32: -3.537452173e-16 | Q32: =exe("Y=",R32=Artand(vctinp($U$17:$U$19,L32:N32),vctinp(vctnrm(vctcrp(vctcrp($U$17:$U$19,L32:N32),$U$17:$U$19)),L32:N32))) -> Y= | R32: 2.886132036e-15 | T32: =H32-H$45 -> -0.2157105363 | U32: -0.135485758 | V32: =P32-P$45 -> -0.1867913361 | W32: =R32-R$45 -> -0.106980855
B33: 1000 | C33: 0 | D33: 0 | E33: 0 | F33: 0 | G33: 0 | H33: 0.6219438268 | I33: 2.081818219 | J33: -47.54864472 | K33: 251.1730789 | L33: -1389290.712 | M33: -4074737.875 | N33: -4705962.751 | O33: =exe("X=",P33=Artand(vctinp($T$17:$T$19,L33:N33),vctinp(vctnrm(vctcrp(vctcrp($T$17:$T$19,L33:N33),$T$17:$T$19)),L33:N33))) -> X= | P33: 1.364362959 | Q33: =exe("Y=",R33=Artand(vctinp($U$17:$U$19,L33:N33),vctinp(vctnrm(vctcrp(vctcrp($U$17:$U$19,L33:N33),$U$17:$U$19)),L33:N33))) -> Y= | R33: 0.689982253 | T33: 0.4062332904 | U33: 1.946332461 | V33: 1.177571623 | W33: 0.5830013981
B34: -1000 | C34: 0 | D34: 0 | E34: 0 | F34: 0 | G34: 0 | H34: -0.5619594599 | I34: -2.065017951 | J34: -48.73254801 | K34: 247.0262427 | L34: -1641998.767 | M34: -3873238.091 | N34: -4793905.729 | O34: =exe("X=",P34=Artand(vctinp($T$17:$T$19,L34:N34),vctinp(vctnrm(vctcrp(vctcrp($T$17:$T$19,L34:N34),$T$17:$T$19)),L34:N34))) -> X= | P34: -1.32275672 | Q34: =exe("Y=",R34=Artand(vctinp($U$17:$U$19,L34:N34),vctinp(vctnrm(vctcrp(vctcrp($U$17:$U$19,L34:N34),$U$17:$U$19)),L34:N34))) -> Y= | R34: -0.6646438308 | T34: -0.7776699962 | U34: -2.200503709 | V34: -1.509548056 | W34: -0.7716246858
B35: 0 | C35: 1000 | D35: 0 | E35: 0 | F35: 0 | G35: 0 | H35: 0.2494548465 | I35: 0.8785761065 | J35: -47.9211337 | K35: 249.9698367 | L35: -1464039.447 | M35: -4015836.056 | N35: -4733850.475 | O35: =exe("X=",P35=Artand(vctinp($T$17:$T$19,L35:N35),vctinp(vctnrm(vctcrp(vctcrp($T$17:$T$19,L35:N35),$T$17:$T$19)),L35:N35))) -> X= | P35: 0.5721615602 | Q35: =exe("Y=",R35=Artand(vctinp($U$17:$U$19,L35:N35),vctinp(vctnrm(vctcrp(vctcrp($U$17:$U$19,L35:N35),$U$17:$U$19)),L35:N35))) -> Y= | R35: 0.2825879941 | T35: 0.03374431013 | U35: 0.7430903485 | V35: 0.3853702241 | W35: 0.1756071391
B36: 0 | C36: -1000 | D36: 0 | E36: 0 | F36: 0 | G36: 0 | H36: -0.2414278983 | I36: -0.8848532243 | J36: -48.41201645 | K36: 248.2064074 | L36: -1571808.642 | M36: -3931076.845 | N36: -4770296.422 | O36: =exe("X=",P36=Artand(vctinp($T$17:$T$19,L36:N36),vctinp(vctnrm(vctcrp(vctcrp($T$17:$T$19,L36:N36),$T$17:$T$19)),L36:N36))) -> X= | P36: -0.5708030358 | Q36: =exe("Y=",R36=Artand(vctinp($U$17:$U$19,L36:N36),vctinp(vctnrm(vctcrp(vctcrp($U$17:$U$19,L36:N36),$U$17:$U$19)),L36:N36))) -> Y= | R36: -0.281216113 | T36: -0.4571384347 | U36: -1.020338982 | V36: -0.7575943718 | W36: -0.3881969679
B37: 0 | C37: 0 | D37: 10000 | E37: 0 | F37: 0 | G37: 0 | H37: 1.62478471 | I37: 5.252865732 | J37: -46.54580384 | K37: 254.3441264 | L37: -1183810.5 | M37: -4224025.091 | N37: -4629896.262 | O37: =exe("X=",P37=Artand(vctinp($T$17:$T$19,L37:N37),vctinp(vctnrm(vctcrp(vctcrp($T$17:$T$19,L37:N37),$T$17:$T$19)),L37:N37))) -> X= | P37: 3.5085869 | Q37: =exe("Y=",R37=Artand(vctinp($U$17:$U$19,L37:N37),vctinp(vctnrm(vctcrp(vctcrp($U$17:$U$19,L37:N37),$U$17:$U$19)),L37:N37))) -> Y= | R37: 1.725162967 | T37: 1.409074173 | U37: 5.117379974 | V37: 3.321795564 | W37: 1.618182112
B38: 0 | C38: 0 | D38: -10000 | E38: 0 | F38: 0 | G38: 0 | H38: -1.138720183 | I38: -4.62589456 | J38: -49.30930873 | K38: 244.4653661 | L38: -1792524.824 | M38: -3752267.619 | N38: -4836009.688 | O38: =exe("X=",P38=Artand(vctinp($T$17:$T$19,L38:N38),vctinp(vctnrm(vctcrp(vctcrp($T$17:$T$19,L38:N38),$T$17:$T$19)),L38:N38))) -> X= | P38: -2.930885323 | Q38: =exe("Y=",R38=Artand(vctinp($U$17:$U$19,L38:N38),vctinp(vctnrm(vctcrp(vctcrp($U$17:$U$19,L38:N38),$U$17:$U$19)),L38:N38))) -> Y= | R38: -1.41627437 | T38: -1.35443072 | U38: -4.761380318 | V38: -3.117676659 | W38: -1.523255225
B39: 0 | C39: 0 | D39: 0 | E39: 5 | F39: 0 | G39: 0 | H39: 1.32806875 | I39: 4.287413217 | J39: -46.8425198 | K39: 253.3786739 | L39: -1247939.893 | M39: -4180447.11 | N39: -4652551.26 | O39: =exe("X=",P39=Artand(vctinp($T$17:$T$19,L39:N39),vctinp(vctnrm(vctcrp(vctcrp($T$17:$T$19,L39:N39),$T$17:$T$19)),L39:N39))) -> X= | P39: 2.847059287 | Q39: =exe("Y=",R39=Artand(vctinp($U$17:$U$19,L39:N39),vctinp(vctnrm(vctcrp(vctcrp($U$17:$U$19,L39:N39),$U$17:$U$19)),L39:N39))) -> Y= | R39: 1.427953682 | T39: 1.112358213 | U39: 4.151927459 | V39: 2.660267951 | W39: 1.320972827
B40: 0 | C40: 0 | D40: 0 | E40: -5 | F40: 0 | G40: 0 | H40: -1.122443419 | I40: -4.422234013 | J40: -49.29303197 | K40: 244.6690266 | L40: -1779763.647 | M40: -3759857.132 | N40: -4834828.171 | O40: =exe("X=",P40=Artand(vctinp($T$17:$T$19,L40:N40),vctinp(vctnrm(vctcrp(vctcrp($T$17:$T$19,L40:N40),$T$17:$T$19)),L40:N40))) -> X= | P40: -2.801073281 | Q40: =exe("Y=",R40=Artand(vctinp($U$17:$U$19,L40:N40),vctinp(vctnrm(vctcrp(vctcrp($U$17:$U$19,L40:N40),$U$17:$U$19)),L40:N40))) -> Y= | R40: -1.384007113 | T40: -1.338153955 | U40: -4.557719771 | V40: -2.987864617 | W40: -1.490987968
B41: 0 | C41: 0 | D41: 0 | E41: 0 | F41: 5 | G41: 0 | H41: 3.317594161 | I41: 9.467639474 | J41: -44.85299439 | K41: 258.5589001 | L41: -896913.5306 | M41: -4431785.745 | N41: -4498289.646 | O41: =exe("X=",P41=Artand(vctinp($T$17:$T$19,L41:N41),vctinp(vctnrm(vctcrp(vctcrp($T$17:$T$19,L41:N41),$T$17:$T$19)),L41:N41))) -> X= | P41: 6.499803059 | Q41: =exe("Y=",R41=Artand(vctinp($U$17:$U$19,L41:N41),vctinp(vctnrm(vctcrp(vctcrp($U$17:$U$19,L41:N41),$U$17:$U$19)),L41:N41))) -> Y= | R41: 3.319274313 | T41: 3.101883625 | U41: 9.332153716 | V41: 6.313011723 | W41: 3.212293458
B42: 0 | C42: 0 | D42: 0 | E42: 0 | F42: -5 | G42: 0 | H42: -2.054640457 | I42: -8.833649772 | J42: -50.225229 | K42: 240.2576109 | L42: -2024393.651 | M42: -3543046.635 | N42: -4901863.867 | O42: =exe("X=",P42=Artand(vctinp($T$17:$T$19,L42:N42),vctinp(vctnrm(vctcrp(vctcrp($T$17:$T$19,L42:N42),$T$17:$T$19)),L42:N42))) -> X= | P42: -5.47714825 | Q42: =exe("Y=",R42=Artand(vctinp($U$17:$U$19,L42:N42),vctinp(vctnrm(vctcrp(vctcrp($U$17:$U$19,L42:N42),$U$17:$U$19)),L42:N42))) -> Y= | R42: -2.728116788 | T42: -2.270350993 | U42: -8.96913553 | V42: -5.663939586 | W42: -2.835097643
B43: 0 | C43: 0 | D43: 0 | E43: 0 | F43: 0 | G43: 5 | H43: -1.570616493 | I43: -6.511686484 | J43: -49.74120504 | K43: 242.5795742 | L43: -1898188.837 | M43: -3658784.443 | N43: -4867217.808 | O43: =exe("X=",P43=Artand(vctinp($T$17:$T$19,L43:N43),vctinp(vctnrm(vctcrp(vctcrp($T$17:$T$19,L43:N43),$T$17:$T$19)),L43:N43))) -> X= | P43: -4.084523937 | Q43: =exe("Y=",R43=Artand(vctinp($U$17:$U$19,L43:N43),vctinp(vctnrm(vctcrp(vctcrp($U$17:$U$19,L43:N43),$U$17:$U$19)),L43:N43))) -> Y= | R43: -2.009133047 | T43: -1.786327029 | U43: -6.647172242 | V43: -4.271315273 | W43: -2.116113902
B44: 0 | C44: 0 | D44: 0 | E44: 0 | F44: 0 | G44: -5 | H44: 2.352198589 | I44: 7.13633811 | J44: -45.81838996 | K44: 256.2275987 | L44: -1058249.737 | M44: -4317397.697 | N44: -4573832.355 | O44: =exe("X=",P44=Artand(vctinp($T$17:$T$19,L44:N44),vctinp(vctnrm(vctcrp(vctcrp($T$17:$T$19,L44:N44),$T$17:$T$19)),L44:N44))) -> X= | P44: 4.823504152 | Q44: =exe("Y=",R44=Artand(vctinp($U$17:$U$19,L44:N44),vctinp(vctnrm(vctcrp(vctcrp($U$17:$U$19,L44:N44),$U$17:$U$19)),L44:N44))) -> Y= | R44: 2.429181167 | T44: 2.136488053 | U44: 7.000852352 | V44: 4.636712816 | W44: 2.322200312
G45: 平均 | H45: =AVERAGE(H32:H44) -> 0.2157105363 | I45: =AVERAGE(I32:I44) -> 0.135485758 | O45: 平均 | P45: =AVERAGE(P32:P44) -> 0.1867913361 | R45: =AVERAGE(R32:R44) -> 0.106980855
B68: 共分散行列 | D68: Σ= | E68: Sxx=｛1/(n-1)｝｛Σ(Xi^2)-n*μx^2｝ | H68: Sxy=｛1/(n-1)｝｛Σ(Xi*Yi)-n*μx*μy｝ | M68: =(1/(COUNT(T32:T44)-1))*(SUMSQ(T32:T44)-COUNT(T32:T44)*AVERAGE(T32:T44)^2) -> 2.533844323 | N68: =1/(COUNT(T32:T44)-1)*(SUMPRODUCT(T32:T44,U32:U44)-COUNT(T32:T44)*AVERAGE(T32:T44)*AVERAGE(U32:U44)) -> 8.628446514 | R68: =(1/(COUNT(V32:V44)-1))*(SUMSQ(V32:V44)-COUNT(V32:V44)*AVERAGE(V32:V44)^2) -> 12.73824361 | S68: =1/(COUNT(V32:V44)-1)*(SUMPRODUCT(V32:V44,W32:W44)-COUNT(V32:V44)*AVERAGE(V32:V44)*AVERAGE(W32:W44)) -> 6.372451336
E69: Sxy=｛1/(n-1)｝｛Σ(Xi*Yi)-n*μx*μy｝ | H69: Syy=｛1/(n-1)｝｛Σ(Yi^2)-n*μy^2｝ | M69: =1/(COUNT(T32:T44)-1)*(SUMPRODUCT(T32:T44,U32:U44)-COUNT(T32:T44)*AVERAGE(T32:T44)*AVERAGE(U32:U44)) -> 8.628446514 | N69: =(1/(COUNT(U32:U44)-1))*(SUMSQ(U32:U44)-COUNT(U32:U44)*AVERAGE(U32:U44)^2) -> 29.82025058 | R69: =1/(COUNT(V32:V44)-1)*(SUMPRODUCT(V32:V44,W32:W44)-COUNT(V32:V44)*AVERAGE(V32:V44)*AVERAGE(W32:W44)) -> 6.372451336 | S69: =(1/(COUNT(W32:W44)-1))*(SUMSQ(W32:W44)-COUNT(W32:W44)*AVERAGE(W32:W44)^2) -> 3.188522444
B71: 固有値 | E71: λ=［(Sxx+Syy)±√｛(Sxx+Syy)^2-4(Sxx*Syy-Sxy*Sxy)｝］/2 | L71: λ1 | M71: =((M68+N69)+SQRT((M68+N69)^2-4*(M68*N69-N68*M69)))/2 -> 32.31975729 | R71: =((R68+S69)+SQRT((R68+S69)^2-4*(R68*S69-S68*R69)))/2 -> 15.92626125
L72: λ2 | M72: =((M68+N69)-SQRT((M68+N69)^2-4*(M68*N69-N68*M69)))/2 -> 0.03433761588 | R72: =((R68+S69)-SQRT((R68+S69)^2-4*(R68*S69-S68*R69)))/2 -> 0.0005048027638
B74: 逆行列 | D74: Σ^-1= | E74: Zxx= Syy/(Sxx*Syy-Sxy*Sxy) | H74: Zxy=-Sxy/(Sxx*Syy-Sxy*Sxy) | M74: =N69/(M68*N69-N68*M69) -> 26.87033369 | N74: =-M69/(M68*N69-N68*M69) -> -7.774892315 | R74: =S69/(R68*S69-S68*R69) -> 396.6011041 | S74: =-R69/(R68*S69-S68*R69) -> -792.6308438
E75: Zxy=-Sxy/(Sxx*Syy-Sxy*Sxy) | H75: Zyy= Sxx/(Sxx*Syy-Sxy*Sxy) | M75: =-N68/(M68*N69-N68*M69) -> -7.774892315 | N75: =M68/(M68*N69-N68*M69) -> 2.283188141 | R75: =-S68/(R68*S69-S68*R69) -> -792.6308438 | S75: =R68/(R68*S69-S68*R69) -> 1584.433407
B77: マハラノビス距離 | E77: Ri=√｛Xi*(Zxx*Xi+Zxy*Yi)+Yi*(Zxy*Xi+Zyy*Yi)｝
B79: 楕円に含まれる確率 | E79: P(h) = 1 - exp(- 1/2 h^2) とすると、 | M79: 0.95 | R79: 0.95
B80: 楕円までのマハラノビス距離 | E80: h=√ln{-2*(1-P(h)} | M80: =SQRT(-2*LN(1-M79)) -> 2.447746831 | R80: =SQRT(-2*LN(1-R79)) -> 2.447746831
B82: 楕円の半径ベクトル | E82: r^T*Σ^-1*r = h^2
B84: 楕円の傾き | E84: tan2θ = 2*Sxy/(Sxx - Syy) | M84: =DEGREES(ATAN(2*N68/(M68-N69)))/2 -> -16.15535749 | R84: =DEGREES(ATAN(2*S68/(R68-S69)))/2 -> 26.57793928
B85: 楕円の長半径 | E85: a^2 = h^2 * { Sxx*(cosθ)^2 + Sxy*sin2θ + Syy*(sinθ)^2 } | M85: =SQRT(M80^2*(M68*COS(RADIANS(M84))^2+N68*SIN(RADIANS(2*M84))+N69*SIN(RADIANS(M84))^2)) -> 0.4535775658 | R85: =SQRT(R80^2*(R68*COS(RADIANS(R84))^2+S68*SIN(RADIANS(2*R84))+S69*SIN(RADIANS(R84))^2)) -> 9.768399544
B86: 楕円の短半径 | E86: b^2 = h^2 * { Sxx*(sinθ)^2 - Sxy*sin2θ + Syy*(cosθ)^2 } | M86: =SQRT(M80^2*(M68*SIN(RADIANS(M84))^2-N68*SIN(RADIANS(2*M84))+N69*COS(RADIANS(M84))^2)) -> 13.91555532 | R86: =SQRT(R80^2*(R68*SIN(RADIANS(R84))^2-S68*SIN(RADIANS(2*R84))+S69*COS(RADIANS(R84))^2)) -> 0.05499552584
B88: 楕円の長半径 | E88: a = h*√(λ2) | H88: =M80*SQRT(M72) -> 0.4535775658
B89: 楕円の短半径 | E89: b = h*√(λ1) | H89: =M80*SQRT(M71) -> 13.91555532
J117: β | K117: 傾斜の無い楕円 | M117: 傾斜角を反映した楕円 | O117: マハラノビス距離 | Q117: β | R117: 傾斜の無い楕円 | T117: 傾斜角を反映した楕円 | V117: マハラノビス距離 | X117: X、Y座標での落下分散楕円を緯度、経度に変換
K118: φI | L118: λI | M118: φI | N118: λI | R118: X | S118: Y | T118: X | U118: Y | X118: R | Y118: T | Z118: N | AA118: X | AB118: Y | AC118: Z | AD118: φI | AE118: λI
J119: 0 | K119: =M$85*COS(RADIANS(J119)) -> 0.4535775658 | L119: =M$86*SIN(RADIANS(J119)) -> 0 | M119: =K119*COS(RADIANS(M$84))-L119*SIN(RADIANS(M$84)) -> 0.4356661381 | N119: =K119*SIN(RADIANS(M$84))+L119*COS(RADIANS(M$84)) -> -0.126204692 | O119: =SQRT(M119*(M$74*M119+N$74*N119)+N119*(M$75*M119+N$75*N119)) -> 2.447746831 | Q119: 0 | R119: =R$85*COS(RADIANS(Q119)) -> 9.768399544 | S119: =R$86*SIN(RADIANS(Q119)) -> 0 | T119: =R119*COS(RADIANS(R$84))-S119*SIN(RADIANS(R$84)) -> 8.736139281 | U119: =R119*SIN(RADIANS(R$84))+S119*COS(RADIANS(R$84)) -> 4.370526298 | V119: =SQRT(T119*(R$74*T119+S$74*U119)+U119*(R$75*T119+S$75*U119)) -> 2.447746831 | X119: =SQRT(1-Y119^2-Z119^2) -> 0.985456134 | Y119: =sind(T119) -> 0.1518842821 | Z119: =sind(U119) -> 0.07620612096 | AA119: =$S$17*X119+$T$17*Y119+$U$17*Z119 -> -0.1061670652 | AB119: =$S$18*X119+$T$18*Y119+$U$18*Z119 -> -0.7160573757 | AC119: =$S$19*X119+$T$19*Y119+$U$19*Z119 -> -0.6899205672 | AD119: =Artand(AC119,(1-$F$4^2)*SQRT(AA119^2+AB119^2)) -> -43.62510382 | AE119: =actand(AB119,AA119) -> 261.5664157
J120: =J119+5 -> 5 | K120: 0.4518515662 | L120: 1.21282056 | M120: 0.7714668856 | N120: 1.039202768 | O120: 2.447746831 | Q120: =Q119+5 -> 5 | R120: 9.731227835 | S120: 0.004793175902 | T120: 8.700751095 | U120: 4.358181791 | V120: 2.447746831 | X120: =SQRT(1-Y120^2-Z120^2) -> 0.9855666224 | Y120: =sind(T120) -> 0.1512737785 | Z120: =sind(U120) -> 0.07599129341 | AA120: =$S$17*X120+$T$17*Y120+$U$17*Z120 -> -0.106728327 | AB120: =$S$18*X120+$T$18*Y120+$U$18*Z120 -> -0.7157814043 | AC120: =$S$19*X120+$T$19*Y120+$U$19*Z120 -> -0.6901203124 | AD120: =Artand(AC120,(1-$F$4^2)*SQRT(AA120^2+AB120^2)) -> -43.64091584 | AE120: =actand(AB120,AA120) -> 261.519256
J121: 10 | K121: 0.4466867033 | L121: 2.416410823 | M121: 1.101396304 | N121: 2.196701268 | O121: 2.447746831 | Q121: 10 | R121: 9.619995606 | S121: 0.009549872842 | T121: 8.599144941 | U121: 4.312668888 | V121: 2.447746831 | X121: 0.9858948584 | Y121: 0.1495205876 | Z121: 0.0751992164 | AA121: -0.1083065071 | AB121: -0.7148701105 | AC121: -0.6908186634 | AD121: -43.69623072 | AE121: 261.3849117
J122: 15 | K122: 0.438122285 | L122: 3.601610741 | M122: 1.422943432 | N122: 3.337481544 | O122: 2.447746831 | Q122: 15 | R122: 9.435549401 | S122: 0.01423388948 | T122: 8.432094101 | U122: 4.234333971 | V122: 2.447746831 | X122: 0.9864308492 | Y122: 0.1466371443 | Z122: 0.07383581551 | AA122: -0.1108886513 | AB122: -0.7133254033 | AC122: -0.6920047514 | AD122: -43.79029531 | AE122: 261.1639166
J123: 20 | K123: 0.4262234915 | L123: 4.759400226 | M123: 1.733661101 | N123: 4.452861571 | O123: 2.447746831 | Q123: 20 | R123: 9.179292968 | S123: 0.01880957763 | T123: 8.200869933 | U123: 4.123773216 | V123: 2.447746831 | X123: 0.9871582779 | Y123: 0.1426439617 | Z123: 0.07191129719 | AA123: -0.1144535186 | AB123: -0.7111508455 | AC123: -0.693660484 | AD123: -43.92185396 | AE123: 260.8571463
J124: 25 | K124: 0.4110808799 | L124: 5.880967802 | M124: 2.031184562 | N124: 5.534352632 | O124: 2.447746831 | Q124: 25 | R124: 8.853176574 | S124: 0.02324211353 | T124: 7.907232194 | U124: 3.981828057 | V124: 2.447746831 | X124: 0.9880550023 | Y124: 0.1375695726 | Z124: 0.06944008259 | AA124: -0.1189717421 | AB124: -0.7083518988 | AC124: -0.6957609589 | AD124: -44.0891701 | AE124: 260.4658325
J125: 30 | K125: 0.3928096945 | L125: 6.957777662 | M125: 2.313249482 | N125: 6.573723928 | O125: 2.447746831 | Q125: 30 | R125: 8.459682159 | S125: 0.02749776292 | T125: 7.553415643 | U125: 3.809578782 | V125: 2.447746831 | X125: 0.9890937336 | Y125: 0.1314504384 | Z125: 0.0664407132 | AA125: -0.1244060573 | AB125: -0.7049362505 | AC125: -0.6982750287 | AD125: -44.29005613 | AE125: 259.9915833
J126: 35 | K126: 0.3715489902 | L126: 7.981634633 | M126: 2.577709177 | N126: 7.563065216 | O126: 2.447746831 | Q126: 35 | R126: 8.001804456 | S126: 0.03154413773 | T126: 7.142113038 | U126: 3.608336312 | V126: 2.447746831 | X126: 0.9902428701 | Y126: 0.1243308183 | Z126: 0.06293572786 | AA126: -0.1307115994 | AB126: -0.7009142036 | AC126: -0.7011659981 | AD126: -44.52191093 | AE126: 259.4364077
J127: 40 | K127: 0.3474605738 | L127: 8.944746544 | M127: 2.822550949 | N127: 8.49484701 | O127: 2.447746831 | Q127: 40 | R127: 7.483028189 | S127: 0.0353504426 | T127: 6.67645464 | U127: 3.379632224 | V127: 2.447746831 | X127: 0.9914674627 | Y127: 0.1162625897 | Z127: 0.0589515108 | AA127: -0.1378362723 | AB127: -0.696299114 | AC127: -0.7043924374 | AD127: -44.78176473 | AE127: 258.8027449
J128: 45 | K128: 0.3207277725 | L128: 9.839783534 | M128: 3.045911403 | N128: 9.36197789 | O128: 2.447746831 | Q128: 45 | R128: 6.907301559 | S128: 0.03888770926 | T128: 6.159984391 | U128: 3.125207094 | V128: 2.447746831 | X128: 0.9927302808 | Y128: 0.1073050103 | Z128: 0.05451811074 | AA128: -0.1457211898 | AB128: -0.6911078495 | AC128: -0.7079090868 | AD128: -45.06633042 | AE128: 258.0934972
J129: 50 | K129: 0.2915540393 | L129: 10.65993383 | M129: 3.246090633 | N129: 10.15785847 | O129: 2.447746831 | Q129: 50 | R129: 6.279006193 | S129: 0.04212901697 | T129: 5.596632941 | U129: 2.846997252 | V129: 2.447746831 | X129: 0.9939929457 | Y129: 0.0975244138 | Z129: 0.04966903077 | AA129: -0.1543011919 | AB129: -0.685361251 | AC129: -0.7116678282 | AD129: -45.37206073 | AE129: 257.3120646
J130: 55 | K130: 0.2601614038 | L130: 11.39895559 | M130: 3.421565153 | N130: 10.8764316 | O130: 2.447746831 | Q130: 55 | R130: 5.602923799 | S130: 0.04504969742 | T130: 4.990687736 | U130: 2.54712004 | V130: 2.447746831 | X130: 0.9952170979 | Y130: 0.0869938304 | Z130: 0.04444098963 | AA130: -0.1635054327 | AB130: -0.6790845696 | AC130: -0.715618698 | AD130: -45.69521019 | AE130: 256.4623803
J131: 60 | K131: 0.2267887829 | L131: 12.05122442 | M131: 3.570999496 | N131: 11.51222853 | O131: 2.447746831 | Q131: 60 | R131: 4.884199772 | S131: 0.04762752247 | T131: 4.346760383 | U131: 2.227857708 | V131: 2.447746831 | X131: 0.9963655613 | Y131: 0.07579252713 | Z131: 0.03887365488 | AA131: -0.1732580385 | AB131: -0.6723078568 | AC131: -0.7197109127 | AD131: -46.03190107 | AE131: 255.5489449
J132: 65 | K132: 0.1916901624 | L132: 12.61177615 | M132: 3.693256377 | N132: 12.06041045 | O132: 2.447746831 | Q132: 65 | R132: 4.128304035 | S132: 0.04984287332 | T132: 3.669751559 | U132: 1.891640033 | V132: 2.447746831 | X132: 0.9974034707 | Y132: 0.06400546481 | Z132: 0.03300934931 | AA132: -0.1834788315 | AB132: -0.665066287 | AC132: -0.7238938819 | AD132: -46.37819188 | AE132: 254.5768564
J133: 70 | K133: 0.155132664 | L133: 13.07634465 | M133: 3.787405346 | N133: 12.51680536 | O133: 2.447746831 | Q133: 70 | R133: 3.340989412 | S133: 0.05167888981 | T133: 2.96481371 | U133: 1.541025835 | V133: 2.447746831 | X133: 0.998299327 | Y133: 0.05172267143 | Z133: 0.02689273207 | AA133: -0.194084109 | AB133: -0.6574003906 | AC133: -0.7281181807 | AD133: -46.73014718 | AE133: 253.5518352
J134: 75 | K134: 0.1173945124 | L134: 13.44139427 | M134: 3.852729874 | N134: 12.87793982 | O134: 2.447746831 | Q134: 75 | R134: 2.528247842 | S134: 0.05312159874 | T134: 2.237311838 | U134: 1.1786835 | V134: 2.447746831 | X134: 0.9990259501 | Y134: 0.03903853533 | Z134: 0.02057045693 | AA134: -0.2049874706 | AB134: -0.6493561813 | AC134: -0.7323364573 | AD134: -47.08390731 | AE134: 252.4802388
J135: 80 | K135: 0.07876291772 | L135: 13.70414677 | M135: 3.888732801 | N135: 13.14106539 | O135: 2.447746831 | Q135: 80 | R135: 1.69626478 | S135: 0.05416002023 | T135: 1.492782673 | U135: 0.8073706723 | V135: 2.447746831 | X135: 0.9995613004 | Y135: 0.02605102514 | Z135: 0.01409081018 | AA135: -0.2161006791 | AB135: -0.6409851649 | AC135: -0.7365042531 | AD135: -47.43575608 | AE135: 251.3690655
J136: 85 | K136: 0.03953188964 | L136: 13.86260243 | M136: 3.895140124 | N136: 13.30417951 | O136: 2.447746831 | Q136: 85 | R136: 0.8513721177 | S136: 0.05478625126 | T136: 0.7368925294 | U136: 0.429913266 | V136: 2.447746831 | X136: 0.9998891432 | Y136: 0.01286084631 | Z136: 0.007503331582 | AA136: -0.2273345411 | AB136: -0.6323442177 | AC136: -0.7405807159 | AD136: -47.78218502 | AE136: 250.2259436
J137: 90 | K137: 2.778499269e-17 | L137: 13.91555532 | M137: 3.871903078 | N137: 13.36604079 | O137: 2.447746831 | Q137: 90 | R137: 5.983869804e-16 | S137: 0.05499552584 | T137: -0.0246058109 | U137: 0.04918396011 | V137: 2.447746831 | X137: 0.9999995393 | Y137: -0.0004294524021 | Z137: 0.0008584219377 | AA137: -0.2385997901 | AB137: -0.6234953316 | AC137: -0.7445291879 | AD137: -48.11995195 | AE137: 249.0591032
J138: 95 | K138: -0.03953188964 | L138: 13.86260243 | M138: 3.819198512 | N138: 13.32617844 | O138: 2.447746831 | Q138: 95 | R138: -0.8513721177 | S138: 0.05478625126 | T138: -0.7859168861 | U138: -0.3319196654 | V138: 2.447746831 | X138: 0.9998891442 | Y138: -0.01371640717 | Z138: -0.005793058611 | AA138: -0.2498079557 | AB138: -0.6145052222 | AC138: -0.7483176579 | AD138: -48.44613225 | AE138: 247.8773311
J139: 100 | K139: -0.07876291772 | L139: 13.70414677 | M139: 3.73742754 | N139: 13.18489582 | O139: 2.447746831 | Q139: 100 | R139: -1.69626478 | S139: 0.05416002023 | T139: -1.541246659 | U139: -0.7104971819 | V139: 2.447746831 | X139: 0.9995613082 | Y139: -0.02689658478 | Z139: -0.01240019734 | AA139: -0.260872201 | AB139: -0.6054448045 | AC139: -0.751919067 | AD139: -48.75816083 | AE139: 246.6899046
J140: 105 | K140: -0.1173945124 | L140: 13.44139427 | M140: 3.627212486 | N140: 12.94326818 | O140: 2.447746831 | Q140: 105 | R140: -2.528247842 | S140: 0.05312159874 | T140: -2.284846615 | U140: -1.083667386 | V140: 2.447746831 | X140: 0.9990259756 | Y140: -0.03986752773 | Z140: -0.01891243626 | AA140: -0.2717081113 | AB140: -0.5963885424 | AC140: -0.7553114648 | AD140: -49.05386338 | AE140: 245.506508
J141: 110 | K141: -0.155132664 | L141: 13.07634465 | M141: 3.489392156 | N141: 12.60313445 | O141: 2.447746831 | Q141: 110 | R141: -3.340989412 | S141: 0.05167888981 | T141: -3.011057508 | U141: -1.448590226 | V141: 2.447746831 | X141: 0.9982993842 | Y141: -0.0525286807 | Z141: -0.02527997555 | AA141: -0.282234418 | AB141: -0.5874136823 | AC141: -0.7584780149 | AD141: -49.33147539 | AE141: 244.3371303
J142: 115 | K142: -0.1916901624 | L142: 12.61177615 | M142: 3.325015445 | N142: 12.16708326 | O142: 2.447746831 | Q142: 115 | R142: -4.128304035 | S142: 0.04984287332 | T142: -3.714352435 | U142: -1.802488421 | V142: 2.447746831 | X142: 0.9974035749 | Y142: -0.06478228134 | Z142: -0.03145416876 | AA142: -0.2923736462 | AB142: -0.5785993868 | AC142: -0.7614068561 | AD142: -49.58964814 | AE142: 243.1919482
J143: 120 | K143: -0.2267887829 | L143: 12.05122442 | M143: 3.135333358 | N143: 11.63843322 | O143: 2.447746831 | Q143: 120 | R143: -4.884199772 | S143: 0.04762752247 | T143: -4.389378898 | U143: -2.14266859 | V143: 2.447746831 | X143: 0.9963657264 | Y143: -0.07653419994 | Z143: -0.03738790571 | AA143: -0.3020526735 | AB143: -0.5700257823 | AC143: -0.7640908257 | AD143: -49.82744124 | AE143: 242.0811966
J144: 125 | K144: -0.2601614038 | L144: 11.39895559 | M144: 2.921789491 | N144: 11.02120768 | O144: 2.447746831 | Q144: 125 | R144: -5.602923799 | S144: 0.04504969742 | T144: -5.030999536 | U144: -2.466541758 | V144: 2.447746831 | X144: 0.9952173338 | Y144: -0.08769471511 | Z144: -0.04303597927 | AA144: -0.3112031949 | AB144: -0.5617729427 | AC144: -0.7665270591 | AD144: -50.04430197 | AE144: 241.0150311
J145: 130 | K145: -0.2915540393 | L145: 10.65993383 | M145: 2.686009042 | N145: 10.32010409 | O145: 2.447746831 | Q145: 130 | R145: -6.279006193 | S145: 0.04212901697 | T145: -5.634331231 | U145: -2.771643053 | V145: 2.447746831 | X145: 0.9939932564 | Y145: -0.09817921551 | Z145: -0.04835543261 | AA145: -0.3197620908 | AB145: -0.5539198271 | AC145: -0.7687164825 | AD145: -50.24003208 | AE145: 240.003388
J146: 135 | K146: -0.3207277725 | L146: 9.839783534 | M146: 2.429786442 | N146: 9.540458277 | O146: 2.447746831 | Q146: 135 | R146: -6.907301559 | S146: 0.03888770926 | T146: -6.194782262 | U146: -3.055650471 | V146: 2.447746831 | X146: 0.9927306629 | Y146: -0.1079088212 | Z146: -0.05330588424 | AA146: -0.3276716977 | AB146: -0.546543196 | AC146: -0.7706632166 | AD146: -50.41474357 | AE146: 239.0558436
J147: 140 | K147: -0.3474605738 | L147: 8.944746544 | M147: 2.155071701 | N147: 8.688203816 | O147: 2.447746831 | Q147: 140 | R147: -7.483028189 | S147: 0.0353504426 | T147: -6.708087261 | U147: -3.316402544 | V147: 2.447746831 | X147: 0.9914679047 | Y147: -0.1168109213 | Z147: -0.05784982829 | AA147: -0.3348799886 | AB147: -0.5397165259 | AC147: -0.7723739152 | AD147: -50.56880531 | AE147: 238.1814804
J148: 145 | K148: -0.3715489902 | L148: 7.981634633 | M148: 1.863955562 | N148: 7.769826879 | O148: 2.447746831 | Q148: 145 | R148: -8.001804456 | S148: 0.03154413773 | T148: -7.170339664 | U148: -3.551914791 | V148: 2.447746831 | X148: 0.9902433527 | Y148: -0.1248196283 | Z148: -0.06195290836 | AA148: -0.3413406708 | AB148: -0.5335089463 | AC148: -0.7738570609 | AD148: -50.70278293 | AE148: 237.3887615
J149: 150 | K149: -0.3928096945 | L149: 6.957777662 | M149: 1.558653596 | N149: 6.792316867 | O149: 2.447746831 | Q149: 150 | R149: -8.459682159 | S149: 0.02749776292 | T149: -7.578021453 | U149: -3.760394822 | V149: 2.447746831 | X149: 0.9890942311 | Y149: -0.1318761522 | Z149: -0.06558416358 | AA149: -0.3470132123 | AB149: -0.5279842193 | AC149: -0.775122245 | AD149: -50.81737456 | AE149: 236.6854166
J150: 155 | K150: -0.4110808799 | L150: 5.880967802 | M150: 1.241489335 | N150: 5.763113222 | O150: 2.447746831 | Q150: 155 | R150: -8.853176574 | S150: 0.02324211353 | T150: -7.928029924 | U150: -3.940255978 | V150: 2.447746831 | X150: 0.9880554846 | Y150: -0.1379291011 | Z150: -0.06871624615 | AA150: -0.3518628121 | AB150: -0.5231997848 | AC150: -0.7761794552 | AD150: -50.9133454 | AE150: 236.078342
J151: 160 | K151: -0.4262234915 | L151: 4.759400226 | M151: 0.9148765907 | N151: 4.690048806 | O151: 2.447746831 | Q151: 160 | R151: -9.179292968 | S151: 0.01880957763 | T151: -8.217701299 | U151: -4.090129406 | V151: 2.447746831 | X151: 0.9871587131 | Y151: -0.1429347143 | Z151: -0.0713256098 | AA151: -0.3558603299 | AB151: -0.5192058882 | AC151: -0.7770383975 | AD151: -50.99146392 | AE151: 235.5735148
J152: 165 | K152: -0.438122285 | L152: 3.601610741 | M152: 0.581301083 | N152: 3.581290287 | O152: 2.447746831 | Q152: 165 | R152: -9.435549401 | S152: 0.01423388948 | T152: -8.444831006 | U152: -4.20887448 | V152: 2.447746831 | X152: 0.9864312071 | Y152: -0.1468570386 | Z152: -0.07339266919 | AA152: -0.3589821901 | AB152: -0.5160448101 | AC152: -0.7777078765 | AD152: -51.05244253 | AE152: 235.1759227
J153: 170 | K153: -0.4466867033 | L153: 2.416410823 | M153: 0.2433015231 | N153: 2.445275986 | O153: 2.447746831 | Q153: 170 | R153: -9.619995606 | S153: 0.009549872842 | T153: -8.607690449 | U153: -4.295587478 | V153: 2.447746831 | X153: 0.9858951129 | Y153: -0.1496680566 | Z153: -0.07490193035 | AA153: -0.3612102778 | AB153: -0.5137502129 | AC153: -0.7781952544 | AD153: -51.09688525 | AE153: 234.8895068
J154: 175 | K154: -0.4518515662 | L154: 1.21282056 | M154: -0.09654970827 | N154: 1.290651658 | O154: 2.447746831 | Q154: 175 | R154: -9.731227835 | S154: 0.004793175902 | T154: -8.705040171 | U154: -4.349608461 | V154: 2.447746831 | X154: 0.9855667547 | Y154: -0.1513477751 | Z154: -0.0758420924 | AA154: -0.3625318409 | AB154: -0.5123466176 | AC154: -0.7785060101 | AD154: -51.12524456 | AE154: 234.7171198
J155: 180 | K155: -0.4535775658 | L155: 1.70486211e-15 | M155: -0.4356661381 | N155: 0.126204692 | O155: 2.447746831 | Q155: 180 | R155: -9.768399544 | S155: 6.737768351e-18 | T155: -8.736139281 | U155: -4.370526298 | V155: 2.447746831 | X155: 0.985456134 | Y155: -0.1518842821 | Z155: -0.07620612096 | AA155: -0.3629394095 | AB155: -0.5118490215 | AC155: -0.7786434128 | AD155: -51.13778937 | AE155: 234.6604948
J156: 185 | K156: -0.4518515662 | L156: -1.21282056 | M156: -0.7714668856 | N156: -1.039202768 | O156: 2.447746831 | Q156: 185 | R156: -9.731227835 | S156: -0.004793175902 | T156: -8.700751095 | U156: -4.358181791 | V156: 2.447746831 | X156: 0.9855666224 | Y156: -0.1512737785 | Z156: -0.07599129341 | AA156: -0.3624307434 | AB156: -0.5122626647 | AC156: -0.7786083217 | AD156: -51.13458524 | AE156: 234.7202274
J157: 190 | K157: -0.4466867033 | L157: -2.416410823 | M157: -1.101396304 | N157: -2.196701268 | O157: 2.447746831 | Q157: 190 | R157: -9.619995606 | S157: -0.009549872842 | T157: -8.599144941 | U157: -4.312668888 | V157: 2.447746831 | X157: 0.9858948584 | Y157: -0.1495205876 | Z157: -0.0751992164 | AA157: -0.3610088134 | AB157: -0.5135829498 | AC157: -0.7783991202 | AD157: -51.11548791 | AE157: 234.8957683
J158: 195 | K158: -0.438122285 | L158: -3.601610741 | M158: -1.422943432 | N158: -3.337481544 | O158: 2.447746831 | Q158: 195 | R158: -9.435549401 | S158: -0.01423388948 | T158: -8.432094101 | U158: -4.234333971 | V158: 2.447746831 | X158: 0.9864308492 | Y158: -0.1466371443 | Z158: -0.07383581551 | AA158: -0.3586818168 | AB158: -0.5157955168 | AC158: -0.778011786 | AD158: -51.08015024 | AE158: 235.1854272
J159: 200 | K159: -0.4262234915 | L159: -4.759400226 | M159: -1.733661101 | N159: -4.452861571 | O159: 2.447746831 | Q159: 200 | R159: -9.179292968 | S159: -0.01880957763 | T159: -8.200869933 | U159: -4.123773216 | V159: 2.447746831 | X159: 0.9871582779 | Y159: -0.1426439617 | Z159: -0.07191129719 | AA159: -0.3554632272 | AB159: -0.5188764714 | AC159: -0.7774400951 | AD159: -51.02804239 | AE159: 235.5863882
J160: 205 | K160: -0.4110808799 | L160: -5.880967802 | M160: -2.031184562 | N160: -5.534352632 | O160: 2.447746831 | Q160: 205 | R160: -8.853176574 | S160: -0.02324211353 | T160: -7.907232194 | U160: -3.981828057 | V160: 2.447746831 | X160: 0.9880550023 | Y160: -0.1375695726 | Z160: -0.06944008259 | AA160: -0.3513718713 | AB160: -0.5227927623 | AC160: -0.7766759529 | AD160: -50.95848453 | AE160: 236.0947367
J161: 210 | K161: -0.3928096945 | L161: -6.957777662 | M161: -2.313249482 | N161: -6.573723928 | O161: 2.447746831 | Q161: 210 | R161: -8.459682159 | S161: -0.02749776292 | T161: -7.553415643 | U161: -3.809578782 | V161: 2.447746831 | X161: 0.9890937336 | Y161: -0.1314504384 | Z161: -0.0664407132 | AA161: -0.3464320232 | AB161: -0.5275026994 | AC161: -0.7757098397 | AD161: -50.87069052 | AE161: 236.7055003
J162: 215 | K162: -0.3715489902 | L162: -7.981634633 | M162: -2.577709177 | N162: -7.563065216 | O162: 2.447746831 | Q162: 215 | R162: -8.001804456 | S162: -0.03154413773 | T162: -7.142113038 | U162: -3.608336312 | V162: 2.447746831 | X162: 0.9902428701 | Y162: -0.1243308183 | Z162: -0.06293572786 | AA162: -0.3406735042 | AB162: -0.532956603 | AC162: -0.7745313569 | AD162: -50.76382108 | AE162: 237.4127028
J163: 220 | K163: -0.3474605738 | L163: -8.944746544 | M163: -2.822550949 | N163: -8.49484701 | O163: 2.447746831 | Q163: 220 | R163: -7.483028189 | S163: -0.0353504426 | T163: -6.67645464 | U163: -3.379632224 | V163: 2.447746831 | X163: 0.9914674627 | Y163: -0.1162625897 | Z163: -0.0589515108 | AA163: -0.3341317739 | AB163: -0.5390975699 | AC163: -0.7731298518 | AD163: -50.63704394 | AE163: 238.2094344
J164: 225 | K164: -0.3207277725 | L164: -9.839783534 | M164: -3.045911403 | N164: -9.36197789 | O164: 2.447746831 | Q164: 225 | R164: -6.907301559 | S164: -0.03888770926 | T164: -6.159984391 | U164: -3.125207094 | V164: 2.447746831 | X164: 0.9927302808 | Y164: -0.1073050103 | Z164: -0.05451811074 | AA164: -0.3268479954 | AB164: -0.5458623416 | AC164: -0.7714951017 | AD164: -50.48959856 | AE164: 239.087936
J165: 230 | K165: -0.2915540393 | L165: -10.65993383 | M165: -3.246090633 | N165: -10.15785847 | O165: 2.447746831 | Q165: 230 | R165: -6.279006193 | S165: -0.04212901697 | T165: -5.596632941 | U165: -2.846997252 | V165: 2.447746831 | X165: 0.9939929457 | Y165: -0.0975244138 | Z165: -0.04966903077 | AA165: -0.3188690594 | AB165: -0.5531822565 | AC165: -0.7696180312 | AD165: -50.32086259 | AE165: 240.0397005
J166: 235 | K166: -0.2601614038 | L166: -11.39895559 | M166: -3.421565153 | N166: -10.8764316 | O166: 2.447746831 | Q166: 235 | R166: -5.602923799 | S166: -0.04504969742 | T166: -4.990687736 | U166: -2.54712004 | V166: 2.447746831 | X166: 0.9952170979 | Y166: -0.0869938304 | Z166: -0.04444098963 | AA166: -0.3102475516 | AB166: -0.5609842665 | AC166: -0.7674914394 | AD166: -50.130417 | AE166: 241.0555876
J167: 240 | K167: -0.2267887829 | L167: -12.05122442 | M167: -3.570999496 | N167: -11.51222853 | O167: 2.447746831 | Q167: 240 | R167: -4.884199772 | S167: -0.04762752247 | T167: -4.346760383 | U167: -2.227857708 | V167: 2.447746831 | X167: 0.9963655613 | Y167: -0.07579252713 | Z167: -0.03887365488 | AA167: -0.3010416485 | AB167: -0.5691919974 | AC167: -0.7651107083 | AD167: -49.91810714 | AE167: 242.1259512
J168: 245 | K168: -0.1916901624 | L168: -12.61177615 | M168: -3.693256377 | N168: -12.06041045 | O168: 2.447746831 | Q168: 245 | R168: -4.128304035 | S168: -0.04984287332 | T168: -3.669751559 | U168: -1.891640033 | V168: 2.447746831 | X168: 0.9974034707 | Y168: -0.06400546481 | Z168: -0.03300934931 | AA168: -0.2913149313 | AB168: -0.5777268318 | AC168: -0.7624744708 | AD168: -49.68409685 | AE168: 243.2407769
J169: 250 | K169: -0.155132664 | L169: -13.07634465 | M169: -3.787405346 | N169: -12.51680536 | O169: 2.447746831 | Q169: 250 | R169: -3.340989412 | S169: -0.05167888981 | T169: -2.96481371 | U169: -1.541025835 | V169: 2.447746831 | X169: 0.998299327 | Y169: -0.05172267143 | Z169: -0.02689273207 | AA169: -0.2811361081 | AB169: -0.5865089907 | AC169: -0.7595852109 | AD169: -49.42891322 | AE169: 244.3898245
J170: 255 | K170: -0.1173945124 | L170: -13.44139427 | M170: -3.852729874 | N170: -12.87793982 | O170: 2.447746831 | Q170: 255 | R170: -2.528247842 | S170: -0.05312159874 | T170: -2.237311838 | U170: -1.1786835 | V170: 2.447746831 | X170: 0.9990259501 | Y170: -0.03903853533 | Z170: -0.02057045693 | AA170: -0.2705786408 | AB170: -0.5954585931 | AC170: -0.7564497757 | AD170: -49.15348014 | AE170: 245.5627726
J171: 260 | K171: -0.07876291772 | L171: -13.70414677 | M171: -3.888732801 | N171: -13.14106539 | O171: 2.447746831 | Q171: 260 | R171: -1.69626478 | S171: -0.05416002023 | T171: -1.492782673 | U171: -0.8073706723 | V171: 2.447746831 | X171: 0.9995613004 | Y171: -0.02605102514 | Z171: -0.01409081018 | AA171: -0.2597202749 | AB171: -0.6044966711 | AC171: -0.7530797789 | AD171: -48.85913905 | AE171: 246.7493592
J172: 265 | K172: -0.03953188964 | L172: -13.86260243 | M172: -3.895140124 | N172: -13.30417951 | O172: 2.447746831 | Q172: 265 | R172: -0.8513721177 | S172: -0.05478625126 | T172: -0.7368925294 | U172: -0.429913266 | V172: 2.447746831 | X172: 0.9998891432 | Y172: -0.01286084631 | Z172: -0.007503331582 | AA172: -0.2486424758 | AB172: -0.6135461198 | AC172: -0.7494918799 | AD172: -48.54765618 | AE172: 247.9395146
J173: 270 | K173: -8.335497808e-17 | L173: -13.91555532 | M173: -3.871903078 | N173: -13.36604079 | O173: 2.447746831 | Q173: 270 | R173: -1.795160941e-15 | S173: -0.05499552584 | T173: 0.0246058109 | U173: -0.04918396011 | V173: 2.447746831 | X173: 0.9999995393 | Y173: 0.0004294524021 | Z173: -0.0008584219377 | AA173: -0.2374297787 | AB173: -0.6225325627 | AC173: -0.7457079244 | AD173: -48.22121615 | AE173: 249.1234816
J174: 275 | K174: 0.03953188964 | L174: -13.86260243 | M174: -3.819198512 | N174: -13.32617844 | O174: 2.447746831 | Q174: 275 | R174: 0.8513721177 | S174: -0.05478625126 | T174: 0.7859168861 | U174: 0.3319196654 | V174: 2.447746831 | X174: 0.9998891442 | Y174: 0.01371640717 | Z174: 0.005793058611 | AA174: -0.2261690618 | AB174: -0.6313851166 | AC174: -0.7417549394 | AD174: -47.88240223 | AE174: 250.2919199
J175: 280 | K175: 0.07876291772 | L175: -13.70414677 | M175: -3.73742754 | N175: -13.18489582 | O175: 2.447746831 | Q175: 280 | R175: 1.69626478 | S175: -0.05416002023 | T175: 1.541246659 | U175: 0.7104971819 | V175: 2.447746831 | X175: 0.9995613082 | Y175: 0.02689658478 | Z175: 0.01240019734 | AA175: -0.2149487567 | AB175: -0.6400370412 | AC175: -0.7376649767 | AD175: -47.53416433 | AE175: 251.4359925
J176: 285 | K176: 0.1173945124 | L176: -13.44139427 | M176: -3.627212486 | N176: -12.94326818 | O176: 2.447746831 | Q176: 285 | R176: 2.528247842 | S176: -0.05312159874 | T176: 2.284846615 | U176: 1.083667386 | V176: 2.447746831 | X176: 0.9990259756 | Y176: 0.03986752773 | Z176: 0.01891243626 | AA176: -0.2038580122 | AB176: -0.6484262638 | AC176: -0.7334748062 | AD176: -47.17977604 | AE176: 252.5474317
J177: 290 | K177: 0.155132664 | L177: -13.07634465 | M177: -3.489392156 | N177: -12.60313445 | O177: 2.447746831 | Q177: 290 | R177: 3.340989412 | S177: -0.05167888981 | T177: 3.011057508 | U177: 1.448590226 | V177: 2.447746831 | X177: 0.9982993842 | Y177: 0.0525286807 | Z177: 0.02527997555 | AA177: -0.1929858263 | AB177: -0.6564957703 | AC177: -0.729225462 | AD177: -46.82278235 | AE177: 253.6185862
J178: 295 | K178: 0.1916901624 | L178: -12.61177615 | M178: -3.325015445 | N178: -12.16708326 | O178: 2.447746831 | Q178: 295 | R178: 4.128304035 | S178: -0.04984287332 | T178: 3.714352435 | U178: 1.802488421 | V178: 2.447746831 | X178: 0.9974035749 | Y178: 0.06478228134 | Z178: 0.03145416876 | AA178: -0.1824201662 | AB178: -0.6641938619 | AC178: -0.7249616519 | AD178: -46.46694003 | AE178: 254.6424484
J179: 300 | K179: 0.2267887829 | L179: -12.05122442 | M179: -3.135333358 | N179: -11.63843322 | O179: 2.447746831 | Q179: 300 | R179: 4.884199772 | S179: -0.04762752247 | T179: 4.389378898 | U179: 2.14266859 | V179: 2.447746831 | X179: 0.9963657264 | Y179: 0.07653419994 | Z179: 0.03738790571 | AA179: -0.1722470922 | AB179: -0.6714742775 | AC179: -0.7207310413 | AD179: -46.1161525 | AE179: 255.6126647
J180: 305 | K180: 0.2601614038 | L180: -11.39895559 | M180: -2.921789491 | N180: -11.02120768 | O180: 2.447746831 | Q180: 305 | R180: 5.602923799 | S180: -0.04504969742 | T180: 5.030999536 | U180: 2.466541758 | V180: 2.447746831 | X180: 0.9952173338 | Y180: 0.08769471511 | Z180: 0.04303597927 | AA180: -0.1625499016 | AB180: -0.6782961873 | AC180: -0.7165834297 | AD180: -45.77440114 | AE180: 256.5235315
J181: 310 | K181: 0.2915540393 | L181: -10.65993383 | M181: -2.686009042 | N181: -10.32010409 | O181: 2.447746831 | Q181: 310 | R181: 6.279006193 | S181: -0.04212901697 | T181: 5.634331231 | U181: 2.771643053 | V181: 2.447746831 | X181: 0.9939932564 | Y181: 0.09817921551 | Z181: 0.04835543261 | AA181: -0.1534083084 | AB181: -0.6846240677 | AC181: -0.71256984 | AD181: -45.44567484 | AE181: 257.369978
J182: 315 | K182: 0.3207277725 | L182: -9.839783534 | M182: -2.429786442 | N182: -9.540458277 | O182: 2.447746831 | Q182: 315 | R182: 6.907301559 | S182: -0.03888770926 | T182: 6.194782262 | U182: 3.055650471 | V182: 2.447746831 | X182: 0.9927306629 | Y182: 0.1079088212 | Z182: 0.05330588424 | AA182: -0.1448976694 | AB182: -0.6904274713 | AC182: -0.7087415413 | AD182: -45.13389958 | AE182: 258.1475412
J183: 320 | K183: =M$85*COS(RADIANS(J183)) -> 0.3474605738 | L183: =M$86*SIN(RADIANS(J183)) -> -8.944746544 | M183: =K183*COS(RADIANS(M$84))-L183*SIN(RADIANS(M$84)) -> -2.155071701 | N183: =K183*SIN(RADIANS(M$84))+L183*COS(RADIANS(M$84)) -> -8.688203816 | O183: =SQRT(M183*(M$74*M183+N$74*N183)+N183*(M$75*M183+N$75*N183)) -> 2.447746831 | Q183: 320 | R183: =R$85*COS(RADIANS(Q183)) -> 7.483028189 | S183: =R$86*SIN(RADIANS(Q183)) -> -0.0353504426 | T183: =R183*COS(RADIANS(R$84))-S183*SIN(RADIANS(R$84)) -> 6.708087261 | U183: =R183*SIN(RADIANS(R$84))+S183*COS(RADIANS(R$84)) -> 3.316402544 | V183: =SQRT(T183*(R$74*T183+S$74*U183)+U183*(R$75*T183+S$75*U183)) -> 2.447746831 | X183: 0.9914679047 | Y183: 0.1168109213 | Z183: 0.05784982829 | AA183: -0.137088268 | AB183: -0.6956807087 | AC183: -0.7051490328 | AD183: -44.84286931 | AE183: 258.8523334
J184: =J183+5 -> 325 | K184: 0.3715489902 | L184: -7.981634633 | M184: -1.863955562 | N184: -7.769826879 | O184: 2.447746831 | Q184: =Q183+5 -> 325 | R184: 8.001804456 | S184: -0.03154413773 | T184: 7.170339664 | U184: 3.551914791 | V184: 2.447746831 | X184: =SQRT(1-Y184^2-Z184^2) -> 0.9902433527 | Y184: =sind(T184) -> 0.1248196283 | Z184: =sind(U184) -> 0.06195290836 | AA184: =$S$17*X184+$T$17*Y184+$U$17*Z184 -> -0.1300446626 | AB184: =$S$18*X184+$T$18*Y184+$U$18*Z184 -> -0.7003624617 | AC184: =$S$19*X184+$T$19*Y184+$U$19*Z184 -> -0.7018410133 | AD184: =Artand(AC184,(1-$F$4^2)*SQRT(AA184^2+AB184^2)) -> -44.57617977 | AE184: =actand(AB184,AA184) -> 259.481007
J185: 330 | K185: 0.3928096945 | L185: -6.957777662 | M185: -1.558653596 | N185: -6.792316867 | O185: 2.447746831 | Q185: 330 | R185: 8.459682159 | S185: -0.02749776292 | T185: 7.578021453 | U185: 3.760394822 | V185: 2.447746831 | X185: 0.9890942311 | Y185: 0.1318761522 | Z185: 0.06558416358 | AA185: -0.123825105 | AB185: -0.7044553504 | AC185: -0.6988633648 | AD185: -44.33716614 | AE185: 260.0307176
J186: 335 | K186: 0.4110808799 | L186: -5.880967802 | M186: -1.241489335 | N186: -5.763113222 | O186: 2.447746831 | Q186: 335 | R186: 8.853176574 | S186: -0.02324211353 | T186: 7.928029924 | U186: 3.940255978 | V186: 2.447746831 | X186: 0.9880554846 | Y186: 0.1379291011 | Z186: 0.06871624615 | AA186: -0.1184810308 | AB186: -0.7079454772 | AC186: -0.6962581753 | AD186: -44.1288458 | AE186: 260.4990877
J187: 340 | K187: 0.4262234915 | L187: -4.759400226 | M187: -0.9148765907 | N187: -4.690048806 | O187: 2.447746831 | Q187: 340 | R187: 9.179292968 | S187: -0.01880957763 | T187: 8.217701299 | U187: 4.090129406 | V187: 2.447746831 | X187: 0.9871587131 | Y187: 0.1429347143 | Z187: 0.0713256098 | AA187: -0.1140566231 | AB187: -0.710821971 | AC187: -0.6940628302 | AD187: -43.9538669 | AE187: 260.8841737
J188: 345 | K188: 0.438122285 | L188: -3.601610741 | M188: -0.581301083 | N188: -3.581290287 | O188: 2.447746831 | Q188: 345 | R188: 9.435549401 | S188: -0.01423388948 | T188: 8.444831006 | U188: 4.20887448 | V188: 2.447746831 | X188: 0.9864312071 | Y188: 0.1468570386 | Z188: 0.07339266919 | AA188: -0.1105884484 | AB188: -0.7130765559 | AC188: -0.6923091943 | AD188: -43.81446351 | AE188: 261.184435
J189: 350 | K189: 0.4466867033 | L189: -2.416410823 | M189: -0.2433015231 | N189: -2.445275986 | O189: 2.447746831 | Q189: 350 | R189: 9.619995606 | S189: -0.009549872842 | T189: 8.607690449 | U189: 4.295587478 | V189: 2.447746831 | X189: 0.9858951129 | Y189: 0.1496680566 | Z189: 0.07490193035 | AA189: -0.1081051639 | AB189: -0.7147031645 | AC189: -0.6910229086 | AD189: -43.71241818 | AE189: 261.398709
J190: 355 | K190: 0.4518515662 | L190: -1.21282056 | M190: 0.09654970827 | N190: -1.290651658 | O190: 2.447746831 | Q190: 355 | R190: 9.731227835 | S190: -0.004793175902 | T190: 8.705040171 | U190: 4.349608461 | V190: 2.447746831 | X190: 0.9855667547 | Y190: 0.1513477751 | Z190: 0.0758420924 | AA190: -0.1066272925 | AB190: -0.7156976162 | AC190: -0.6902228211 | AD190: -43.64903214 | AE190: 261.5261902
J191: 360 | K191: 0.4535775658 | L191: -3.409724221e-15 | M191: 0.4356661381 | N191: -0.126204692 | O191: 2.447746831 | Q191: 360 | R191: 9.768399544 | S191: -1.34755367e-17 | T191: 8.736139281 | U191: 4.370526298 | V191: 2.447746831 | X191: 0.985456134 | Y191: 0.1518842821 | Z191: 0.07620612096 | AA191: -0.1061670652 | AB191: -0.7160573757 | AC191: -0.6899205672 | AD191: -43.62510382 | AE191: 261.5664157

Sheet お問合せ
B2: 技術的なご質問のみお受けします。
C4: sxsijk@Gmail.com | D4: sxsijk@Gmail.com
E92: =C92-#REF! -> 
E93: =IF(C93<0,C93+360,C93)-IF(#REF!<0,#REF!+360,#REF!) -> 
E94: =C94-#REF! -> 
E96: =C96-#REF! -> 
E97: =C97-#REF! -> 
E98: =C98-#REF! -> 
E99: =C99-#REF! -> 
E100: =C100-#REF! -> 
E101: =IF(C101<0,C101+360,C101)-IF(#REF!<0,#REF!+360,#REF!) -> 
E102: =C102-#REF! -> 
E103: =C103-#REF! -> 
E104: =C104-#REF! -> 
E105: =C105-#REF! -> 
E106: =C106-#REF! -> 
C109: 35 | E109: =C109-#REF! -> 
B110: λp | E110: =C110-#REF! -> 
E111: =C111-#REF! -> 
C112: =SQRT(((#REF!^2*COS(RADIANS(C109)))^2+(#REF!^2*SIN(RADIANS(C109)))^2)/(#REF!^2*(1-C$4*SIN(RADIANS(C109))^2))) ->  | E112: =C112-#REF! -> 
C113: =DEGREES(C115/C112) ->  | E113: =C113-#REF! -> 
E114: =C114-#REF! -> 
E115: =C115-#REF! -> 
E116: =IF(C116<0,C116+360,C116)-IF(#REF!<0,#REF!+360,#REF!) -> 
E117: =C117-#REF! -> 
C118: =DEGREES(ATAN2((1-C$4)*COS(RADIANS(C117)),SIN(RADIANS(C117)))) ->  | E118: =C118-#REF! -> 
C119: =SQRT(((#REF!^2*COS(RADIANS(C118)))^2+(#REF!^2*SIN(RADIANS(C118)))^2)/(#REF!^2*(1-C$4*SIN(RADIANS(C118))^2))) ->  | E119: =C119-#REF! -> 
C120: =DEGREES(ACOS(COS(RADIANS(C$111))*COS(RADIANS(C117))*(COS(RADIANS(C$110))*COS(RADIANS(C116))+SIN(RADIANS(C$110))*SIN(RADIANS(C116)))+SIN(RADIANS(C$111))*SIN(RADIANS(C117)))) -> 0 | E120: =C120-#REF! -> 
C121: =DEGREES(ATAN2(COS(RADIANS(C$111))*SIN(RADIANS(C117))-SIN(RADIANS(C$111))*COS(RADIANS(C117))*COS(RADIANS(C116-C$110)),COS(RADIANS(C117))*SIN(RADIANS(C116-C$110)))) ->  | E121: =C121-#REF! -> 
C122: =SQRT(((C$112-C119)*COS(RADIANS(C120/2)))^2+(MAX(C$112,C119)*RADIANS(C120)-ABS(C$112-C119)*SIN(RADIANS(C120/2)))^2) ->  | E122: =C122-#REF! -> 
A123: 補正 | B123: θ＝θ+(d0-d)/r | C123: =C113+DEGREES((C115-C122)/C119) ->  | E123: =C123-#REF! -> 
C124: =C114 -> 0 | E124: =C124-#REF! -> 
C125: =C115 -> 0 | E125: =C125-#REF! -> 
E126: =IF(C126<0,C126+360,C126)-IF(#REF!<0,#REF!+360,#REF!) -> 
E127: =C127-#REF! -> 
C128: =DEGREES(ATAN2((1-C$4)*COS(RADIANS(C127)),SIN(RADIANS(C127)))) ->  | E128: =C128-#REF! -> 
C129: =SQRT(((#REF!^2*COS(RADIANS(C128)))^2+(#REF!^2*SIN(RADIANS(C128)))^2)/(#REF!^2*(1-C$4*SIN(RADIANS(C128))^2))) ->  | E129: =C129-#REF! -> 
C130: =DEGREES(ACOS(COS(RADIANS(C$111))*COS(RADIANS(C127))*(COS(RADIANS(C$110))*COS(RADIANS(C126))+SIN(RADIANS(C$110))*SIN(RADIANS(C126)))+SIN(RADIANS(C$111))*SIN(RADIANS(C127)))) -> 0 | E130: =C130-#REF! -> 
C131: =DEGREES(ATAN2(COS(RADIANS(C$111))*SIN(RADIANS(C127))-SIN(RADIANS(C$111))*COS(RADIANS(C127))*COS(RADIANS(C126-C$110)),COS(RADIANS(C127))*SIN(RADIANS(C126-C$110)))) ->  | E131: =C131-#REF! -> 
C132: =SQRT(((C$112-C129)*COS(RADIANS(C130/2)))^2+(MAX(C$112,C129)*RADIANS(C130)-ABS(C$112-C129)*SIN(RADIANS(C130/2)))^2) ->  | E132: =C132-#REF! -> 
